bitfinex-derivatives/quotes_BNBF0:USTF0_20250708
["timestamp","ask_amount","ask_price","bid_price","bid_amount"]
[1751998762702,1.70057448,661.4,660.94,2.261979]
[1751998764502,1.70057448,661.4,660.95,2.261979]
[1751998764998,1.70057448,661.39,660.95,2.261979]
[1751998765297,1.70057448,661.4,660.96,2.261979]
[1751998766298,1.70057448,661.41,660.94,2.261979]
[1751998768398,1.70057448,661.41,660.93,2.261979]
[1751998769705,1.70057448,661.41,660.94,2.261979]
[1751998770301,1.70057448,661.41,660.95,2.164]
[1751998770504,1.70057448,661.41,660.95,4.425979]
[1751998771503,1.70057448,661.41,660.95,2.164]
[1751998772903,1.70057448,661.42,660.95,2.164]
[1751998775405,1.70057448,661.41,660.95,2.164]
[1751998778311,1.70057448,661.4,660.95,2.164]
[1751998780608,1.70057448,661.41,660.95,2.164]
[1751998781411,0.26313402,661.74,660.95,2.164]
[1751998781412,1.70057448,661.4,660.95,2.164]
[1751998782809,1.70057448,661.39,660.95,4.425979]
[1751998785216,1.70057448,661.39,660.95,2.261979]
[1751998785416,1.70057448,661.42,660.98,2.261979]
[1751998786217,1.70057448,661.43,660.96,2.261979]
[1751998788715,1.70057448,661.43,660.97,1.936]
[1751998790521,1.70057448,661.43,660.97,4.197979]
[1751998795521,1.70057448,661.4,660.97,1.936]
[1751998796124,1.70057448,661.39,660.97,1.936]
[1751998800726,1.70057448,661.4,660.97,1.936]
[1751998801025,1.70057448,661.41,660.97,1.936]
[1751998806131,1.70057448,661.4,660.97,1.936]
[1751998808330,1.70057448,661.42,660.97,1.936]
[1751998810840,1.70057448,661.41,660.93,2.261979]
[1751998811337,1.70057448,661.42,660.93,2.261979]
[1751998811534,1.70057448,661.41,660.94,2.261979]
[1751998812139,1.70057448,661.41,660.93,2.261979]
[1751998813440,1.70057448,661.41,660.94,2.308]
[1751998814636,1.70057448,661.41,660.94,2.57112407]
[1751998815733,1.70057448,661.41,660.94,4.83310307]
[1751998817939,1.70057448,661.41,660.94,2.57112407]
[1751998818137,1.70057448,661.4,660.96,2.261979]
[1751998820245,1.70057448,661.43,660.94,2.57112407]
[1751998821442,1.70057448,661.44,660.94,2.57112407]
[1751998828352,1.7002455,661.44,660.94,2.57112407]
[1751998830157,1.7002455,661.41,660.94,2.57112407]
[1751998831058,1.7002455,661.4,660.94,2.57112407]
[1751998831957,1.7002455,661.39,660.95,2.261979]
[1751998834761,1.7002455,661.39,660.94,2.57112407]
[1751998834957,1.7002455,661.4,660.94,4.83310307]
[1751998835361,1.7002455,661.43,660.97,2.261979]
[1751998835561,1.7002455,661.45,660.94,4.83310307]
[1751998836258,1.7002455,661.44,660.95,2.261979]
[1751998836559,2.2674274,661.56,660.95,2.261979]
[1751998836863,1.7002515,661.44,660.95,2.261979]
[1751998839364,1.7002515,661.45,660.94,2.57112407]
[1751998840465,1.7002515,661.46,660.94,2.57112407]
[1751998845371,1.7002515,661.42,660.94,2.57112407]
[1751998849274,1.7002515,661.41,660.94,4.83310307]
[1751998850271,1.7002515,661.41,660.95,2.261979]
[1751998850775,1.7002515,661.4,660.95,2.261979]
[1751998851672,1.7002515,661.41,660.95,2.261979]
[1751998851973,1.7002515,661.42,660.94,2.57112407]
[1751998854775,1.7002515,661.43,660.94,2.57112407]
[1751998854975,1.7002515,661.53,660.94,2.57112407]
[1751998862778,1.7002515,661.52,660.94,2.57112407]
[1751998864679,1.7002515,661.47,660.94,2.57112407]
[1751998866585,1.7002515,661.45,660.94,2.57112407]
[1751998866785,1.7002515,661.44,660.94,2.57112407]
[1751998869781,1.7002515,661.48,660.94,2.57112407]
[1751998871083,1.7002515,661.49,660.94,2.57112407]
[1751998872388,1.7002515,661.49,660.94,0.26312407]
[1751998874786,1.7002515,661.49,660.95,2.033]
[1751998876391,1.7002515,661.44,660.95,2.033]
[1751998878488,1.7002515,661.45,660.95,2.033]
[1751998879491,1.7002515,661.41,660.95,2.033]
[1751998880193,1.7002515,661.4,660.95,2.033]
[1751998880692,1.7002515,661.41,660.95,2.033]
[1751998880891,1.7002515,661.4,660.95,2.033]
[1751998882497,1.7002515,661.41,660.95,2.033]
[1751998882792,1.7002515,661.4,660.95,2.033]
[1751998883699,1.7002515,661.41,660.95,2.033]
[1751998885302,1.7002515,661.42,660.95,2.033]
[1751998890115,1.7002515,661.41,660.95,2.033]
[1751998890316,1.7002515,661.4,660.95,2.033]
[1751998890514,1.7002515,661.37,660.95,2.033]
[1751998890712,1.7002515,661.31,660.95,2.033]
[1751998891515,1.7002515,661.32,660.95,2.033]
[1751998892020,1.7002515,661.31,660.95,2.033]
[1751998892216,1.7002515,661.39,660.95,2.033]
[1751998892519,1.7002515,661.4,660.95,2.033]
[1751998893420,1.7002515,661.41,660.95,2.033]
[1751998894221,1.03015951,661.59,660.95,2.033]
[1751998894522,1.697979,661.41,660.95,2.033]
[1751998895317,1.697979,661.42,660.95,2.033]
[1751998898318,1.697979,661.43,660.95,2.033]
[1751998900522,1.697979,661.44,660.95,2.033]
[1751998901423,1.697979,661.45,660.95,2.033]
[1751998902121,1.03015951,661.64,660.95,2.033]
[1751998902122,1.697979,661.41,660.95,2.033]
[1751998902326,1.697979,661.42,660.95,2.033]
[1751998902525,1.697979,661.4,660.95,2.033]
[1751998903025,1.697979,661.41,660.95,2.033]
[1751998905327,1.697979,661.46,660.95,2.033]
[1751998910334,1.697979,661.44,660.95,2.033]
[1751998911633,2.2674274,661.58,660.95,2.033]
[1751998911833,1.69609558,661.44,660.85,0.26316685]
[1751998912837,1.69609558,661.43,660.85,0.26316685]
[1751998913537,1.69609558,661.44,660.85,0.26316685]
[1751998915137,3.40114111,661.72,660.85,0.26316685]
[1751998915138,1.69609558,661.43,660.85,0.26316685]
[1751998915639,1.69609558,661.42,660.85,0.26316685]
[1751998915841,1.69609558,661.42,660.86,1.74]
[1751998917445,2.2674274,661.56,660.86,1.74]
[1751998917644,1.6963594,661.42,660.86,1.74]
[1751998918544,1.6963594,661.43,660.86,1.74]
[1751998919345,1.6963594,661.42,660.86,1.74]
[1751998922140,0.26312108,661.8,660.86,1.74]
[1751998922141,1.6963594,661.41,660.86,1.74]
[1751998922443,1.6963594,661.42,660.86,1.74]
[1751998923146,2.2674274,661.55,660.86,1.74]
[1751998923345,0.26312108,661.8,660.86,1.74]
[1751998923346,1.69671586,661.41,660.86,1.74]
[1751998928351,1.69671586,661.39,660.86,1.74]
[1751998929251,1.69730216,661.39,660.86,1.74]
[1751998930257,1.69730216,661.38,660.86,1.74]
[1751998930653,1.69730216,661.39,660.86,1.74]
[1751998931157,1.69730216,661.38,660.86,1.74]
[1751998934453,1.69730216,661.37,660.86,1.74]
[1751998934855,2.2674274,661.48,660.86,1.74]
[1751998935060,1.69804076,661.37,660.86,1.74]
[1751998935460,1.69804076,661.36,660.86,1.74]
[1751998939659,1.69804076,661.37,660.86,1.74]
[1751998940865,1.69840044,661.37,660.86,1.74]
[1751998941865,1.69840044,661.38,660.86,1.74]
[1751998942361,1.69840044,661.39,660.86,1.74]
[1751998942566,1.69840044,661.43,660.86,1.74]
[1751998943867,1.69840044,661.45,660.86,1.74]
[1751998944168,1.69840044,661.49,660.86,1.74]
[1751998944368,1.69840044,661.5,660.86,1.74]
[1751998946866,1.69840044,661.5,660.85,0.26316685]
[1751998947266,1.69840044,661.51,660.85,0.26316685]
[1751998947966,1.69840044,661.5,660.85,0.26316685]
[1751998950265,1.69840044,661.5,660.86,1.821]
[1751998951168,1.69840044,661.49,660.86,1.821]
[1751998952574,1.69840044,661.48,660.87,2.261979]
[1751998953074,1.69840044,661.48,660.86,4.082979]
[1751998953669,1.69840044,661.48,660.87,2.261979]
[1751998954277,1.69840044,661.48,660.86,4.082979]
[1751998954574,1.69840044,661.48,660.87,2.261979]
[1751998955977,1.69840044,661.48,660.86,4.082979]
[1751998956178,1.69840044,661.48,660.87,2.261979]
[1751998956374,1.69840044,661.47,660.87,2.261979]
[1751998957073,1.69840044,661.47,660.9,2.261979]
[1751998957275,1.69840044,661.46,660.9,2.261979]
[1751998958081,2.2674274,661.57,660.9,2.261979]
[1751998958376,1.69706132,661.46,660.9,2.261979]
[1751998961680,0.26312108,661.8,660.88,2.261979]
[1751998961681,1.69706132,661.47,660.88,2.261979]
[1751998961879,1.69706132,661.46,660.87,2.261979]
[1751998962384,1.69706132,661.46,660.88,2.261979]
[1751998963484,1.69706132,661.45,660.88,2.261979]
[1751998965981,1.69706132,661.45,660.89,2.261979]
[1751998966686,1.69706132,661.46,660.88,2.261979]
[1751998968889,1.69706132,661.45,660.88,2.261979]
[1751998971192,1.69706132,661.45,660.89,2.261979]
[1751998971591,1.69706132,661.45,660.9,2.261979]
[1751998972092,2.2674274,661.55,660.9,2.261979]
[1751998972288,1.69743569,661.45,660.9,2.261979]
[1751998972492,1.69743569,661.44,660.9,2.261979]
[1751998975490,1.69743569,661.44,660.85,0.26316685]
[1751998975491,1.69743569,661.46,660.92,2.261979]
[1751998978495,1.69743569,661.46,660.91,2.261979]
[1751998978896,1.69743569,661.46,660.92,2.261979]
[1751998979093,1.69743569,661.47,660.91,2.261979]
[1751998979793,1.69743569,661.4,660.85,0.26316685]
[1751998980894,1.69743569,661.4,660.85,2.52514585]
[1751998982495,1.69743569,661.43,660.85,0.26316685]
[1751998983895,0.26312108,661.8,660.85,0.26316685]
[1751998983896,1.69743569,661.44,660.85,0.26316685]
[1751998985501,1.69743569,661.42,660.85,0.26316685]
[1751998987303,1.69789262,661.42,660.85,0.26316685]
[1751998991110,1.69789262,661.44,660.85,0.26316685]
[1751998991309,1.69789262,661.43,660.85,0.26316685]
[1751998991711,1.69789262,661.47,660.85,0.26316685]
[1751998992115,1.69789262,661.46,660.85,0.26316685]
[1751998992513,1.69789262,661.49,660.85,0.26316685]
[1751998995213,1.6978766,661.49,660.85,0.26316685]
[1751998997717,1.6978766,661.53,660.85,0.26316685]
[1751998998218,1.6978766,661.53,660.85,2.52514585]
[1751998998518,1.6978766,661.53,660.85,0.26316685]
[1751998999221,1.6978766,661.53,660.85,2.52514585]
[1751998999522,1.6978766,661.53,660.85,0.26316685]
[1751999000222,1.6978766,661.53,660.85,2.52514585]
[1751999000718,1.6978766,661.51,660.89,2.261979]
[1751999000918,1.6978766,661.51,660.9,2.261979]
[1751999001119,1.6978766,661.5,660.91,2.261979]
[1751999002219,1.6978766,661.5,660.92,2.261979]
[1751999002424,1.6978766,661.5,660.91,2.261979]
[1751999003225,1.6978766,661.51,660.89,2.261979]
[1751999005421,1.6978766,661.51,660.88,2.261979]
[1751999006325,1.6978766,661.51,660.89,2.261979]
[1751999006524,1.6978766,661.51,660.88,2.261979]
[1751999009025,1.6978766,661.52,660.87,2.261979]
[1751999009625,1.6978766,661.52,660.86,2.261979]
[1751999011026,1.6978766,661.52,660.87,2.261979]
[1751999011527,1.69764003,661.52,660.87,2.261979]
[1751999012429,1.69764003,661.52,660.86,2.261979]
[1751999012932,1.69764003,661.52,660.87,2.261979]
[1751999013228,1.69764003,661.52,660.88,2.261979]
[1751999013834,1.69764003,661.51,660.89,2.261979]
[1751999015232,1.69764003,661.52,660.88,2.261979]
[1751999015530,1.69764003,661.53,660.91,2.261979]
[1751999016434,1.69764003,661.52,660.92,2.261979]
[1751999017330,1.69764003,661.53,660.91,2.261979]
[1751999018333,1.69764003,661.53,660.9,2.261979]
[1751999018532,1.69741626,661.53,660.9,2.261979]
[1751999018830,1.69741626,661.52,660.93,2.261979]
[1751999019334,1.69741626,661.52,660.92,2.261979]
[1751999021334,1.69741626,661.52,660.93,2.261979]
[1751999021729,1.69741626,661.52,660.92,2.261979]
[1751999023433,1.69741626,661.52,660.85,0.26316685]
[1751999023434,1.69741626,661.53,660.9,2.261979]
[1751999025134,1.69741626,661.53,660.91,2.261979]
[1751999025436,0.26312108,661.8,660.9,2.261979]
[1751999025437,1.69741626,661.51,660.9,2.261979]
[1751999027141,1.69741626,661.51,660.91,2.261979]
[1751999027842,1.69741626,661.51,660.92,2.519]
[1751999032842,1.69741626,661.51,660.92,4.780979]
[1751999033142,1.69741626,661.51,660.92,2.519]
[1751999033343,1.69741626,661.5,660.94,2.261979]
[1751999034644,1.69741626,661.51,660.92,4.780979]
[1751999035142,1.69741626,661.5,660.92,4.780979]
[1751999035446,1.69741626,661.51,660.92,4.780979]
[1751999037852,1.69741626,661.5,660.93,2.261979]
[1751999040154,1.69741626,661.51,660.92,2.519]
[1751999040752,1.69741626,661.52,660.92,2.519]
[1751999041452,1.69741626,661.51,660.92,2.519]
[1751999044459,1.69741626,661.5,660.92,2.519]
[1751999044758,1.69741626,661.5,660.92,4.780979]
[1751999046255,1.69741626,661.52,660.92,2.519]
[1751999047461,1.69741626,661.51,660.92,2.519]
[1751999049561,1.69741626,661.5,660.92,2.519]
[1751999050570,1.69741626,661.49,660.92,2.519]
[1751999051460,1.69741626,661.48,660.92,4.780979]
[1751999052465,1.69741626,661.48,660.92,2.519]
[1751999056162,3.40114111,661.78,660.98,2.261979]
[1751999056163,1.69741626,661.52,660.98,2.261979]
[1751999056762,1.69741626,661.53,660.99,2.261979]
[1751999057368,1.69741626,661.54,660.99,2.261979]
[1751999057767,1.69741626,661.54,661.0,2.261979]
[1751999057971,1.69741626,661.54,660.99,2.261979]
[1751999058172,1.69741626,661.55,660.99,2.261979]
[1751999059370,1.69741626,661.56,660.98,2.261979]
[1751999059573,1.69741626,661.56,660.99,2.261979]
[1751999060469,1.69741626,661.57,660.99,2.261979]
[1751999061374,1.69741626,661.57,660.98,2.261979]
[1751999062673,1.69741626,661.57,660.99,2.261979]
[1751999064572,1.69741626,661.63,661.05,2.261979]
[1751999065373,1.69741626,661.67,661.08,2.261979]
[1751999065575,1.69741626,661.68,661.08,2.261979]
[1751999066477,1.69741626,661.68,661.07,2.261979]
[1751999067579,1.69741626,661.69,661.07,2.261979]
[1751999067974,1.69741626,661.68,661.08,2.261979]
[1751999068574,2.2674274,661.81,661.08,2.261979]
[1751999068875,1.69691577,661.69,661.07,2.261979]
[1751999070376,1.69691577,661.69,660.94,3.39296851]
[1751999070377,1.69691577,661.7,661.06,2.261979]
[1751999071477,1.69691577,661.71,661.04,2.261979]
[1751999072381,2.2674274,661.84,661.04,2.261979]
[1751999072582,1.69619435,661.71,661.04,2.261979]
[1751999074284,1.69607606,661.7,661.04,2.261979]
[1751999074483,1.69607606,661.69,661.07,2.261979]
[1751999075083,1.69607606,661.69,661.08,2.261979]
[1751999075288,1.69607606,661.69,661.07,2.261979]
[1751999075579,1.69607606,661.66,661.04,2.261979]
[1751999075980,1.69607606,661.66,661.03,2.261979]
[1751999076179,1.69607606,661.67,661.0,2.261979]
[1751999076681,1.69607606,661.69,660.97,2.261979]
[1751999078885,1.69607606,661.64,660.92,2.261979]
[1751999080081,1.69607606,661.64,660.93,1.695]
[1751999080587,1.69607606,661.63,660.93,1.695]
[1751999080781,1.69607606,661.64,660.93,1.695]
[1751999082085,1.69607606,661.63,660.93,1.695]
[1751999083487,1.69607606,661.57,660.93,1.695]
[1751999085184,1.69607606,661.56,660.93,1.695]
[1751999086288,1.69601126,661.56,660.93,1.695]
[1751999086488,1.69601126,661.55,660.93,1.695]
[1751999090588,1.69601126,661.54,660.93,1.695]
[1751999090790,1.69601126,661.52,660.93,3.956979]
[1751999090989,1.69601126,661.53,660.93,1.695]
[1751999091589,1.69601126,661.53,660.93,1.95811114]
[1751999100898,1.69601126,661.52,660.93,4.22009014]
[1751999102299,1.69601126,661.53,660.93,4.22009014]
[1751999103500,1.69601126,661.53,660.93,1.95811114]
[1751999104905,1.69601126,661.53,660.93,4.22009014]
[1751999105504,1.69601126,661.55,660.95,2.261979]
[1751999106005,1.69601126,661.56,660.93,4.22009014]
[1751999107507,1.69601126,661.55,660.93,4.22009014]
[1751999107708,1.69601126,661.56,660.93,4.22009014]
[1751999110204,1.69601126,661.55,660.93,4.22009014]
[1751999110405,1.69601126,661.56,660.93,4.22009014]
[1751999112607,1.69601126,661.55,660.93,1.95811114]
[1751999112809,1.69601126,661.55,660.94,2.261979]
[1751999113715,1.69601126,661.7,660.93,1.95811114]
[1751999115416,1.69601126,661.68,660.93,1.95811114]
[1751999118116,1.69601126,661.7,660.93,1.95811114]
[1751999119615,1.69601126,661.71,660.93,1.95811114]
[1751999123623,1.69601126,661.67,660.93,1.95811114]
[1751999125428,1.69601126,661.66,660.93,1.95811114]
[1751999128127,1.69601126,661.62,660.93,1.95811114]
[1751999130330,1.69601126,661.57,660.93,1.95811114]
[1751999132830,1.69601126,661.56,660.93,1.95811114]
[1751999133632,1.69601126,661.53,660.93,1.95811114]
[1751999134036,1.69601126,661.54,660.93,1.95811114]
[1751999136440,1.69601126,661.53,660.93,1.95811114]
[1751999137439,1.69601126,661.52,660.93,1.95811114]
[1751999139137,1.69601126,661.52,660.93,0.26311114]
[1751999139337,1.69601126,661.51,660.93,0.26311114]
[1751999141241,1.69601126,661.5,660.93,0.26311114]
[1751999142345,1.69601126,661.49,660.93,0.26311114]
[1751999142643,1.69601126,661.49,660.94,2.394]
[1751999143138,1.69601126,661.5,660.94,2.394]
[1751999143338,1.69601126,661.47,660.94,2.394]
[1751999143544,1.69601126,661.46,660.94,2.394]
[1751999144141,1.69601126,661.43,660.94,2.394]
[1751999144339,1.69601126,661.44,660.94,4.655979]
[1751999144841,1.69601126,661.46,660.94,2.394]
[1751999153644,1.69601126,661.47,660.94,2.394]
[1751999153845,1.69601126,661.48,660.94,2.394]
[1751999154044,1.69601126,661.47,660.94,2.394]
[1751999154542,1.69601126,661.46,660.94,2.394]
[1751999155550,2.2674274,661.59,660.94,2.394]
[1751999155551,1.69601126,661.48,660.94,2.394]
[1751999156050,1.69601126,661.48,660.94,4.655979]
[1751999156251,1.69601126,661.49,660.94,2.394]
[1751999159850,0.2630813,661.9,660.94,2.394]
[1751999159851,1.69601126,661.48,660.94,2.394]
[1751999163756,1.69601126,661.47,660.97,2.261979]
[1751999165253,3.40114111,661.7,660.94,2.394]
[1751999165254,1.69601126,661.46,660.99,2.261979]
[1751999165459,1.69601126,661.45,660.98,2.261979]
[1751999167458,1.69601126,661.44,660.98,2.261979]
[1751999168957,1.69601126,661.44,660.99,2.665]
[1751999169160,1.69601126,661.45,660.99,2.665]
[1751999171359,1.69601126,661.46,660.99,2.665]
[1751999172360,1.69601126,661.45,660.99,2.665]
[1751999176663,1.69601126,661.46,660.99,2.665]
[1751999178968,1.69601126,661.45,660.99,2.665]
[1751999179467,1.69601126,661.46,660.99,2.665]
[1751999179663,1.69601126,661.45,660.99,2.665]
[1751999182976,1.69601126,661.47,660.99,2.665]
[1751999189280,1.69601126,661.46,660.99,2.665]
[1751999192686,1.69601126,661.45,660.99,2.665]
[1751999194992,1.69601126,661.46,660.99,2.665]
[1751999195490,1.69601126,661.45,660.99,2.665]
[1751999195987,1.69601126,661.44,660.99,2.665]
[1751999198891,1.69601126,661.45,660.99,2.665]
[1751999199289,1.69601126,661.44,660.99,2.665]
[1751999201298,1.69601126,661.45,660.99,2.665]
[1751999202197,1.69601126,661.44,660.99,2.665]
[1751999205598,1.69601126,661.48,660.99,2.665]
[1751999206399,0.2630813,661.9,660.99,2.665]
[1751999206400,1.69601126,661.49,660.99,2.665]
[1751999211104,1.69601126,661.48,660.99,2.665]
[1751999211904,1.69601126,661.48,660.96,2.261979]
[1751999212602,1.69601126,661.48,660.95,2.261979]
[1751999212904,1.69601126,661.48,660.96,2.261979]
[1751999213098,1.69601126,661.48,660.95,2.261979]
[1751999213909,1.69601126,661.49,660.95,2.261979]
[1751999214102,1.69601126,661.49,660.93,0.26311114]
[1751999214103,1.69601126,661.48,660.94,2.261979]
[1751999214407,1.69601126,661.48,660.95,2.261979]
[1751999215205,1.69601126,661.48,660.96,1.748]
[1751999215501,1.69601126,661.44,660.96,1.748]
[1751999215702,1.69601126,661.45,660.96,1.748]
[1751999216202,1.69601126,661.44,660.96,1.748]
[1751999216406,1.69601126,661.43,660.96,1.748]
[1751999219005,1.69601126,661.44,660.96,1.748]
[1751999219208,1.69601126,661.42,660.96,1.748]
[1751999219804,1.69601126,661.39,660.96,1.748]
[1751999220109,1.69601126,661.34,660.96,1.748]
[1751999221408,1.69601126,661.35,660.96,1.748]
[1751999222008,1.69601126,661.36,660.96,1.748]
[1751999222404,1.69601126,661.37,660.96,1.748]
[1751999223008,1.69601126,661.36,660.96,1.748]
[1751999224008,1.69601126,661.29,660.96,1.748]
[1751999224408,1.69601126,661.31,660.96,1.748]
[1751999225112,1.69601126,661.37,660.96,1.748]
[1751999225313,1.69601126,661.34,660.96,1.748]
[1751999225514,1.69601126,661.35,660.96,1.748]
[1751999226313,1.69601126,661.36,660.96,1.748]
[1751999227313,1.69601126,661.37,660.96,1.748]
[1751999228013,1.69601126,661.38,660.96,1.748]
[1751999228415,1.69601126,661.39,660.96,1.748]
[1751999229416,1.69601126,661.4,660.96,1.748]
[1751999231417,1.69601126,661.41,660.96,1.748]
[1751999233315,1.69601126,661.42,660.96,1.748]
[1751999235020,1.69601126,661.37,660.96,1.748]
[1751999236225,1.69601126,661.38,660.96,1.748]
[1751999236424,1.69601126,661.38,660.84,0.26317382]
[1751999237120,1.69601126,661.42,660.84,0.26317382]
[1751999237522,1.69601126,661.43,660.84,0.26317382]
[1751999237722,1.69601126,661.41,660.84,0.26317382]
[1751999239925,1.69601126,661.41,660.85,2.668]
[1751999245626,1.69601126,661.43,660.85,2.668]
[1751999246528,1.02470401,661.61,660.85,2.668]
[1751999246529,1.69601126,661.47,660.85,2.668]
[1751999247029,1.69601126,661.44,660.85,2.668]
[1751999252237,1.69601126,661.42,660.85,2.668]
[1751999252631,1.69601126,661.47,660.85,2.668]
[1751999253835,1.69601126,661.45,660.85,2.668]
[1751999255934,1.69601126,661.44,660.85,2.668]
[1751999256835,1.69601126,661.45,660.85,2.668]
[1751999259337,1.69601126,661.44,660.85,2.668]
[1751999259534,1.69601126,661.43,660.85,2.668]
[1751999260037,1.69601126,661.44,660.85,2.668]
[1751999262138,1.69601126,661.45,660.85,2.668]
[1751999265339,1.69601126,661.44,660.85,2.668]
[1751999268238,1.69520777,661.44,660.85,2.668]
[1751999268443,1.69520777,661.43,660.85,2.668]
[1751999270343,1.69520777,661.42,660.85,2.668]
[1751999273348,1.69520777,661.41,660.85,2.668]
[1751999277448,1.69520777,661.4,660.85,2.668]
[1751999278945,1.69520777,661.4,660.84,0.26317382]
[1751999283754,1.69520777,661.41,660.84,0.26317382]
[1751999291455,1.69520777,661.4,660.84,0.26317382]
[1751999293457,1.69520777,661.39,660.84,0.26317382]
[1751999295356,1.69520777,661.39,660.84,2.52515282]
[1751999295563,1.69520777,661.42,660.86,2.261979]
[1751999296460,1.69520777,661.42,660.87,2.261979]
[1751999296661,1.69520777,661.43,660.84,2.52515282]
[1751999297358,1.69520777,661.42,660.85,2.261979]
[1751999298663,1.69520777,661.42,660.84,2.52515282]
[1751999299565,1.69520777,661.42,660.85,2.261979]
[1751999301364,1.69520777,661.41,660.85,2.261979]
[1751999302262,1.69520777,661.41,660.86,2.261979]
[1751999302762,1.69520777,661.41,660.85,2.261979]
[1751999303367,1.69520777,661.4,660.87,2.261979]
[1751999305463,1.69520777,661.4,660.88,2.261979]
[1751999305761,1.69520777,661.37,660.85,2.261979]
[1751999305961,1.69520777,661.38,660.84,0.26317382]
[1751999306367,1.69520777,661.38,660.84,2.52515282]
[1751999307266,1.69520777,661.37,660.84,2.52515282]
[1751999308069,1.69520777,661.37,660.84,0.26317382]
[1751999308363,1.69520777,661.37,660.84,2.52515282]
[1751999308664,1.69520777,661.38,660.84,0.26317382]
[1751999311372,1.69520777,661.37,660.84,0.26317382]
[1751999313570,1.69520777,661.38,660.84,0.26317382]
[1751999313776,1.69520777,661.39,660.84,0.26317382]
[1751999315375,1.69520777,661.38,660.84,0.26317382]
[1751999316177,1.69520777,661.39,660.84,0.26317382]
[1751999316373,1.69520777,661.38,660.84,0.26317382]
[1751999316675,1.69520777,661.39,660.84,0.26317382]
[1751999316874,1.69520777,661.45,660.87,2.261979]
[1751999317074,1.69520777,661.44,660.87,2.261979]
[1751999317276,1.69520777,661.45,660.86,2.261979]
[1751999318281,1.69520777,661.46,660.85,3.959979]
[1751999318580,1.69520777,661.45,660.87,2.261979]
[1751999318978,1.69520777,661.45,660.88,2.261979]
[1751999320584,1.69520777,661.45,660.87,2.261979]
[1751999321378,2.2674274,661.59,660.87,2.261979]
[1751999321379,1.69520777,661.46,660.87,2.261979]
[1751999323580,1.69520777,661.43,660.94,2.261979]
[1751999324079,1.69520777,661.44,660.92,2.261979]
[1751999326385,1.69520777,661.45,660.91,2.261979]
[1751999327381,1.69520777,661.45,660.9,2.261979]
[1751999327585,2.2674274,661.57,660.9,2.261979]
[1751999327785,1.69840509,661.45,660.9,2.261979]
[1751999329282,1.69840509,661.46,660.9,2.261979]
[1751999330384,1.69840509,661.45,660.91,2.261979]
[1751999330785,1.69840509,661.46,660.9,2.261979]
[1751999333890,1.69840509,661.45,660.92,2.261979]
[1751999335495,1.69840509,661.45,660.91,2.261979]
[1751999335688,1.69840509,661.47,660.93,2.261979]
[1751999336189,1.69840509,661.47,660.94,2.261979]
[1751999340694,2.2674274,661.58,660.94,2.261979]
[1751999340998,1.69786965,661.47,660.94,2.261979]
[1751999342197,1.69786965,661.48,660.94,2.261979]
[1751999342494,1.69786965,661.48,660.93,2.261979]
[1751999345600,1.69786965,661.46,660.91,2.261979]
[1751999347396,1.69786965,661.47,660.89,2.261979]
[1751999349200,1.69786965,661.47,660.88,2.261979]
[1751999349401,1.69786965,661.47,660.89,2.261979]
[1751999349701,1.69786965,661.47,660.88,2.261979]
[1751999352002,1.69786965,661.47,660.9,2.261979]
[1751999352202,1.69786965,661.47,660.92,2.261979]
[1751999353898,1.69786965,661.46,660.92,2.261979]
[1751999356101,1.69786965,661.46,660.93,2.261979]
[1751999357697,1.69786965,661.48,660.87,2.261979]
[1751999359101,1.69786965,661.48,660.88,2.261979]
[1751999362503,1.69786965,661.48,660.89,2.261979]
[1751999364304,1.69786965,661.47,660.89,2.261979]
[1751999364903,1.69786965,661.48,660.88,2.261979]
[1751999365206,1.69786965,661.47,660.89,2.261979]
[1751999366903,1.69786965,661.48,660.88,2.261979]
[1751999367308,1.69786965,661.47,660.89,2.261979]
[1751999367607,1.69786965,661.45,660.94,2.261979]
[1751999371306,2.2674274,661.56,660.94,2.261979]
[1751999371307,1.69786965,661.44,660.94,2.261979]
[1751999373006,1.69786965,661.44,660.95,2.261979]
[1751999373809,1.69786965,661.43,660.95,2.261979]
[1751999374807,1.69786965,661.43,660.96,2.261979]
[1751999375406,1.69786965,661.42,660.97,2.261979]
[1751999375609,2.2674274,661.53,660.97,2.261979]